fUST/lending_fUST_20250905
["ID","MTS","AMOUNT","RATE_DAILY","PERIOD"]
[383636144,1757052645584,-480.0,0.00014271,2]
[383636145,1757052645594,-480.0,0.00014271,2]
[383636146,1757052645603,-480.0,0.00014271,2]
[383636147,1757052645613,-480.0,0.00014271,2]
[383636148,1757052645624,-480.0,0.00014271,2]
[383636149,1757052645634,-480.0,0.00014271,2]
[383636150,1757052645643,-480.0,0.00014271,2]
[383636151,1757052645654,-480.0,0.00014271,2]
[383636152,1757052645663,-153.578079,0.00014271,2]
[383636153,1757052645674,-153.578079,0.00014271,2]
[383636154,1757052645683,-153.578079,0.00014271,2]
[383636155,1757052645693,-153.578079,0.00014271,2]
[383636156,1757052645703,-480.0,0.00014271,2]
[383636157,1757052645712,-480.0,0.00014271,2]
[383636158,1757052645721,-480.0,0.00014271,2]
[383636159,1757052645731,-480.0,0.00014271,2]
[383636160,1757052645740,-497.17,0.00014271,2]
[383636161,1757052645750,-151.0,0.00014271,2]
[383636162,1757052645759,-548.36,0.00014271,2]
[383636163,1757052645768,-516.81306998,0.00014271,2]
[383636164,1757052645781,-151.0,0.00014271,2]
[383636165,1757052645790,-482.54798358,0.00014271,2]
[383636166,1757052645799,-480.0,0.00014271,2]
[383636167,1757052645809,-480.0,0.00014271,2]
[383636168,1757052645818,-480.0,0.00014272,2]
[383636169,1757052645827,-480.0,0.00014272,2]
[383636170,1757052645836,-480.0,0.00014272,2]
[383636171,1757052645846,-304.92800288,0.00014272,2]
[383636172,1757052645855,-480.0,0.00014272,2]
[383636173,1757052645864,-480.0,0.00014272,2]
[383636174,1757052645873,-480.0,0.00014272,2]
[383636175,1757052645882,-480.0,0.00014272,2]
[383636176,1757052645892,-191.33443585,0.00014272,2]
[383636177,1757052645902,-480.0,0.00014272,2]
[383636178,1757052645911,-519.14,0.00014272,2]
[383636179,1757052645921,-541.03,0.00014272,2]
[383636180,1757052645930,-544.63,0.00014272,2]
[383636181,1757052645939,-480.0,0.00014272,2]
[383636182,1757052645948,-480.0,0.00014272,2]
[383636183,1757052645958,-480.0,0.00014272,2]
[383636184,1757052645967,-480.0,0.00014272,2]
[383636185,1757052645977,-480.0,0.00014272,2]
[383636186,1757052645986,-480.0,0.00014272,2]
[383636187,1757052645996,-363.54,0.00014272,2]
[383636188,1757052646006,-480.0,0.00014272,2]
[383636189,1757052646015,-480.0,0.00014272,2]
[383636190,1757052646025,-480.0,0.00014272,2]
[383636191,1757052646034,-183.8992078,0.00014272,2]
[383636192,1757052646050,-484.1875951,0.00014272,2]
[383636193,1757052646059,-480.0,0.00014272,2]
[383636194,1757052646069,-480.0,0.00014272,2]
[383636195,1757052646079,-480.0,0.00014272,2]
[383636196,1757052646088,-480.0,0.00014272,2]
[383636197,1757052646098,-480.0,0.00014272,2]
[383636198,1757052646107,-480.0,0.00014272,2]
[383636199,1757052646117,-480.0,0.00014272,2]
[383636200,1757052646127,-535.19,0.00014272,2]
[383636201,1757052646136,-166.35502102,0.00014272,2]
[383636202,1757052646146,-151.537508,0.00014272,2]
[383636203,1757052646155,-151.0,0.00014272,2]
[383636205,1757052646172,-480.0,0.00014272,2]
[383636206,1757052646184,-151.0,0.00014272,2]
[383636207,1757052646194,-162.22799,0.00014272,2]
[383636208,1757052646204,-151.0,0.00014272,2]
[383636209,1757052646213,-151.0,0.00014272,2]
[383636210,1757052646223,-151.0,0.00014272,2]
[383636211,1757052646233,-151.0,0.00014272,2]
[383636212,1757052646243,-510.34217014,0.00014273,2]
[383636213,1757052646253,-503.14329344,0.00014273,2]
[383636214,1757052646263,-480.0,0.00014273,2]
[383636215,1757052646273,-300.0,0.00014277,2]
[383636216,1757052646284,-300.0,0.00014277,2]
[383636217,1757052646294,-300.0,0.00014277,2]
[383636218,1757052646303,-300.0,0.00014277,2]
[383636219,1757052646313,-300.0,0.00014277,2]
[383636220,1757052646324,-300.0,0.00014277,2]
[383636221,1757052646337,-300.0,0.00014277,2]
[383636222,1757052646348,-300.0,0.00014277,2]
[383636223,1757052646358,-300.0,0.00014277,2]
[383636224,1757052646368,-300.0,0.00014277,2]
[383636225,1757052646378,-300.0,0.00014277,2]
[383636226,1757052646388,-300.0,0.00014277,2]
[383636227,1757052646397,-300.0,0.00014277,2]
[383636228,1757052646407,-300.0,0.00014277,2]
[383636229,1757052646416,-300.0,0.00014277,2]
[383636230,1757052646426,-600.0,0.00014277,2]
[383636231,1757052646436,-168.0,0.00014305,2]
[383636232,1757052646446,-1000.0,0.00014421,2]
[383636233,1757052646456,-153.578079,0.00014421,2]
[383636234,1757052646467,-153.578079,0.00014421,2]
[383636235,1757052646477,-153.578079,0.00014421,2]
[383636236,1757052646487,-153.578079,0.00014421,2]
[383636237,1757052646497,-151.0,0.00014421,2]
[383636238,1757052646507,-151.0,0.00014421,2]
[383636239,1757052646517,-480.0,0.00014443,2]
[383636240,1757052646527,-1872.38,0.00014443,2]
[383636241,1757052646537,-480.0,0.00014443,2]
[383636242,1757052646547,-487.78,0.00014443,2]
[383636243,1757052646557,-712.06,0.00014443,2]
[383636244,1757052646568,-1117.86,0.00014444,2]
[383636245,1757052646579,-480.0,0.00014444,2]
[383636246,1757052646589,-855.77,0.00014444,2]
[383636247,1757052646599,-527.43,0.00014444,2]
[383636248,1757052646738,-480.0,0.00014444,2]
[383636249,1757052646749,-480.0,0.00014444,2]
[383636250,1757052646758,-480.0,0.00014444,2]
[383636251,1757052646767,-480.0,0.00014444,2]
[383636252,1757052646780,-501.21,0.00014444,2]
[383636253,1757052646790,-492.61,0.00014444,2]
[383636254,1757052646799,-480.0,0.00014444,2]
[383636255,1757052646808,-480.0,0.00014444,2]
[383636256,1757052646819,-480.0,0.00014444,2]
[383636257,1757052646829,-480.0,0.00014444,2]
[383636258,1757052646840,-302.78781627,0.00014444,2]
[383636259,1757052646850,-480.0,0.00014444,2]
[383636260,1757052646860,-635.93,0.00014444,2]
[383636261,1757052646869,-879.6,0.00014444,2]
[383636262,1757052646878,-544.37,0.00014444,2]
[383636263,1757052646888,-1020.17,0.00014444,2]
[383636264,1757052646898,-646.75,0.00014444,2]
[383636265,1757052646907,-480.0,0.00014444,2]
[383636266,1757052646916,-480.0,0.00014444,2]
[383636267,1757052646925,-516.464048,0.00014444,2]
[383636268,1757052646934,-480.0,0.00014444,2]
[383636269,1757052646944,-524.19,0.00014444,2]
[383636270,1757052646953,-480.0,0.00014444,2]
[383636271,1757052646962,-540.17,0.00014444,2]
[383636272,1757052646971,-480.0,0.00014444,2]
[383636273,1757052646980,-480.0,0.00014444,2]
[383636274,1757052646989,-480.0,0.00014444,2]
[383636275,1757052646998,-1089.44,0.00014444,2]
[383636276,1757052647008,-1498.17,0.00014444,2]
[383636277,1757052647017,-3222.57,0.00014444,2]
[383636278,1757052647026,-480.0,0.00014445,2]
[383636279,1757052647035,-480.0,0.00014445,2]
[383636280,1757052647044,-480.0,0.00014445,2]
[383636281,1757052647053,-480.0,0.00014445,2]
[383636282,1757052647062,-282.75755612,0.00014445,2]
[383636283,1757052647354,-197.24244388,0.00014445,2]
[383636284,1757052647364,-480.0,0.00014445,2]
[383636285,1757052647374,-641.57,0.00014445,2]
[383636286,1757052647383,-182.74499927,0.00014445,2]
[383636287,1757052647395,-480.0,0.00014445,2]
[383636288,1757052647404,-480.0,0.00014445,2]
[383636289,1757052647414,-480.0,0.00014445,2]
[383636290,1757052647425,-480.0,0.00014445,2]
[383636291,1757052647435,-245.2,0.00014445,2]
[383636292,1757052647444,-480.0,0.00014445,2]
[383636293,1757052647454,-480.0,0.00014445,2]
[383636294,1757052647463,-480.0,0.00014445,2]
[383636295,1757052647473,-480.0,0.00014445,2]
[383636296,1757052647482,-19.90255685,0.00014445,2]
[383636297,1757052726219,1000.0,0.00018864,20]
[383636300,1757052862053,413.32020265,0.00013522,2]
[383636305,1757053081984,684.24979735,0.00013523,2]
[383636306,1757053486990,402.0,0.00027397,120]
[383636308,1757053824048,245.21,0.00012329,2]
[383636363,1757053831926,-590.18605,0.00013699,2]
[383636368,1757053831936,-618.53033127,0.00013773,2]
[383636371,1757053831946,-322.7336093,0.00013793,2]
[383636651,1757053839922,-78.6911413,0.00013793,2]
[383636652,1757053839932,-1533.60438604,0.00013798,2]
[383636653,1757053839942,-294.05686276,0.00013864,2]
[383636654,1757053839952,-300.0,0.0001387,2]
[383636655,1757053839962,-480.0,0.0001387,2]
[383636656,1757053839972,-1200.0,0.00013871,2]
[383636657,1757053839981,-480.0,0.00013871,2]
[383636658,1757053839990,-480.0,0.00013871,2]
[383636659,1757053840000,-905.73,0.00013871,2]
[383636661,1757053840010,-480.0,0.00013871,2]
[383636662,1757053840019,-1050.06,0.00013871,2]
[383636663,1757053840028,-1856.98,0.00013871,2]
[383636664,1757053840038,-422.91,0.00013871,2]
[383636665,1757053840047,-480.0,0.00013871,2]
[383636666,1757053840057,-480.0,0.00013871,2]
[383636667,1757053840066,-507.13,0.00013871,2]
[383636668,1757053840075,-482.19956899,0.00013871,2]
[383636669,1757053840085,-480.0,0.00013871,2]
[383636670,1757053840094,-562.35,0.00013871,2]
[383636671,1757053840103,-712.72,0.00013871,2]
[383636672,1757053840112,-480.0,0.00013871,2]
[383636673,1757053840121,-480.0,0.00013871,2]
[383636674,1757053840131,-480.0,0.00013871,2]
[383636675,1757053840140,-1094.61,0.00013872,2]
[383636676,1757053840149,-1069.1,0.00013872,2]
[383636677,1757053840159,-1506.79,0.00013872,2]
[383636678,1757053840167,-480.0,0.00013872,2]
[383636679,1757053840177,-824.45,0.00013872,2]
[383636680,1757053840186,-523.47,0.00013872,2]
[383636681,1757053840195,-260.15196357,0.00013872,2]
[383636682,1757053840204,-480.0,0.00013872,2]
[383636683,1757053840214,-480.0,0.00013872,2]
[383636684,1757053840223,-499.44,0.00013872,2]
[383636685,1757053840232,-480.0,0.00013872,2]
[383636686,1757053840242,-480.0,0.00013872,2]
[383636687,1757053840251,-480.0,0.00013872,2]
[383636688,1757053840260,-491.56,0.00013872,2]
[383636689,1757053840270,-480.0,0.00013872,2]
[383636690,1757053840279,-480.0,0.00013872,2]
[383636691,1757053840288,-480.0,0.00013872,2]
[383636692,1757053840297,-503.87613142,0.00013872,2]
[383636693,1757053840307,-649.43,0.00013872,2]
[383636694,1757053840316,-545.5,0.00013872,2]
[383636695,1757053840325,-699.8,0.00013872,2]
[383636696,1757053840334,-480.0,0.00013872,2]
[383636697,1757053840344,-480.0,0.00013872,2]
[383636698,1757053840354,-480.0,0.00013872,2]
[383636699,1757053840363,-480.0,0.00013872,2]
[383636700,1757053840372,-537.66,0.00013872,2]
[383636701,1757053840381,-50000.0,0.00013872,2]
[383636702,1757053840390,-298.23054015,0.00013873,2]
[383636703,1757053840401,-500.0,0.00013873,2]
[383636704,1757053840410,-500.0,0.00013873,2]
[383636705,1757053840419,-510.34217014,0.00013873,2]
[383636706,1757053840429,-503.14329344,0.00013873,2]
[383636707,1757053840438,-500.0,0.00013873,2]
[383636708,1757053840447,-500.0,0.00013873,2]
[383636709,1757053840456,-307.43453656,0.00013892,2]
[383636710,1757053840465,-500.0,0.00013892,2]
[383636711,1757053840474,-500.0,0.00013892,2]
[383636712,1757053840483,-500.0,0.00013892,2]
[383636713,1757053840493,-500.0,0.00013892,2]
[383636714,1757053840502,-418.04978271,0.00013892,2]
[383636715,1757053840513,-500.0,0.00013892,2]
[383636716,1757053840523,-500.0,0.00013892,2]
[383636717,1757053840533,-500.0,0.00013892,2]
[383636718,1757053840542,-500.0,0.00013892,2]
[383636719,1757053840551,-500.0,0.00013892,2]
[383636720,1757053840561,-500.0,0.00013892,2]
[383636721,1757053840571,-500.0,0.00013892,2]
[383636722,1757053840580,-500.0,0.00013892,2]
[383636723,1757053840589,-500.0,0.00013892,2]
[383636724,1757053840599,-500.0,0.00013892,2]
[383636725,1757053840608,-500.0,0.00013892,2]
[383636726,1757053840617,-500.0,0.00013892,2]
[383636727,1757053840627,-500.0,0.00013892,2]
[383636728,1757053840636,-500.0,0.00013892,2]
[383636729,1757053840645,-500.0,0.00013892,2]
[383636730,1757053840655,-370.75867956,0.00013892,2]
[383636731,1757053840664,-500.0,0.00013892,2]
[383636732,1757053840674,-500.0,0.00013892,2]
[383636733,1757053840684,-500.0,0.00013892,2]
[383636734,1757053840693,-500.0,0.00013892,2]
[383636735,1757053840703,-500.0,0.00013892,2]
[383636736,1757053840714,-480.0,0.00013893,2]
[383636737,1757053840723,-480.0,0.00013893,2]
[383636738,1757053840734,-480.0,0.00013893,2]
[383636739,1757053840743,-480.0,0.00013893,2]
[383636740,1757053840753,-480.0,0.00013893,2]
[383636741,1757053840763,-480.0,0.00013893,2]
[383636742,1757053840773,-480.0,0.00013893,2]
[383636743,1757053840782,-480.0,0.00013893,2]
[383636744,1757053840792,-480.0,0.00013893,2]
[383636745,1757053840802,-480.0,0.00013893,2]
[383636746,1757053840815,-480.0,0.00013893,2]
[383636747,1757053840827,-480.0,0.00013893,2]
[383636748,1757053840840,-480.0,0.00013893,2]
[383636749,1757053840852,-480.0,0.00013893,2]
[383636750,1757053840862,-568.86,0.00013893,2]
[383636751,1757053840872,-351.22170609,0.00013893,2]
[383636752,1757053840884,-480.0,0.00013893,2]
[383636753,1757053840894,-480.0,0.00013893,2]
[383636754,1757053840903,-480.0,0.00013893,2]
[383636755,1757053840912,-480.0,0.00013893,2]
[383636756,1757053840922,-400.95,0.00013893,2]
[383636757,1757053840931,-480.0,0.00013893,2]
[383636758,1757053840941,-480.0,0.00013893,2]
[383636759,1757053840951,-480.0,0.00013893,2]
[383636760,1757053840960,-459.84,0.00013893,2]
[383636761,1757053840969,-322.76599843,0.00013893,2]
[383636762,1757053840978,-480.0,0.00013893,2]
[383636763,1757053840987,-480.0,0.00013893,2]
[383636764,1757053840997,-480.0,0.00013893,2]
[383636765,1757053841006,-483.24827613,0.00013893,2]
[383636766,1757053841016,-480.0,0.00013893,2]
[383636767,1757053841025,-236.25,0.00013893,2]
[383636768,1757053841034,-366.93785782,0.00013893,2]
[383636769,1757053841043,-480.0,0.00013893,2]
[383636770,1757053841054,-480.0,0.00013893,2]
[383636771,1757053841063,-480.0,0.00013893,2]
[383636772,1757053841073,-480.0,0.00013893,2]
[383636773,1757053841083,-613.87678429,0.00013893,2]
[383636774,1757053841092,-480.0,0.00013893,2]
[383636775,1757053841101,-480.0,0.00013893,2]
[383636776,1757053841112,-490.61,0.00013893,2]
[383636777,1757053841122,-480.0,0.00013893,2]
[383636778,1757053841131,-480.0,0.00013893,2]
[383636779,1757053841141,-480.0,0.00013893,2]
[383636780,1757053841151,-480.0,0.00013893,2]
[383636781,1757053841160,-3012.35,0.00013893,2]
[383636782,1757053841170,-480.0,0.00013893,2]
[383636783,1757053841179,-480.0,0.00013893,2]
[383636784,1757053841188,-480.0,0.00013893,2]
[383636785,1757053841199,-480.0,0.00013893,2]
[383636786,1757053841209,-591.78,0.00013893,2]
[383636787,1757053841220,-1534.3,0.00013893,2]
[383636788,1757053841229,-480.0,0.00013893,2]
[383636789,1757053841240,-859.65,0.00013893,2]
[383636790,1757053841251,-743.04,0.00013893,2]
[383636791,1757053841261,-480.0,0.00013893,2]
[383636792,1757053841270,-2281.09,0.00013893,2]
[383636793,1757053841280,-480.0,0.00013893,2]
[383636794,1757053841289,-2563.76,0.00013893,2]
[383636795,1757053841299,-480.0,0.00013893,2]
[383636796,1757053841308,-5336.97,0.00013893,2]
[383636797,1757053841317,-735.11,0.00013893,2]
[383636798,1757053841326,-1129.83,0.00013893,2]
[383636799,1757053841456,-499.71187723,0.00013893,2]
[383636817,1757053842997,-76.92812277,0.00013893,2]
[383636818,1757053843007,-480.0,0.00013893,2]
[383636819,1757053843016,-480.0,0.00013893,2]
[383636820,1757053843026,-480.0,0.00013893,2]
[383636821,1757053843038,-480.0,0.00013893,2]
[383636822,1757053843049,-1054.46,0.00013893,2]
[383636823,1757053843059,-480.0,0.00013893,2]
[383636824,1757053843068,-480.0,0.00013893,2]
[383636825,1757053843078,-480.0,0.00013893,2]
[383636826,1757053843087,-1600.69,0.00013893,2]
[383636827,1757053843096,-480.0,0.00013893,2]
[383636828,1757053843106,-500.0,0.00013893,2]
[383636829,1757053843115,-705.22,0.00013893,2]
[383636830,1757053843124,-1261.56,0.00013893,2]
[383636831,1757053843134,-480.0,0.00013893,2]
[383636832,1757053843143,-480.0,0.00013893,2]
[383636833,1757053843152,-480.0,0.00013893,2]
[383636834,1757053843162,-1067.68,0.00013893,2]
[383636835,1757053843171,-480.0,0.00013893,2]
[383636836,1757053843180,-480.0,0.00013893,2]
[383636837,1757053843190,-480.0,0.00013894,2]
[383636838,1757053843199,-480.0,0.00013894,2]
[383636839,1757053843209,-480.0,0.00013894,2]
[383636840,1757053843219,-580.85295363,0.00013894,2]
[383636841,1757053843228,-480.0,0.00013894,2]
[383636842,1757053843238,-480.0,0.00013894,2]
[383636843,1757053843247,-500.12,0.00013894,2]
[383636844,1757053843256,-483.36841889,0.00013894,2]
[383636845,1757053843266,-561.37,0.00013894,2]
[383636846,1757053843276,-532.44719092,0.00013894,2]
[383636847,1757053843285,-550.96,0.00013894,2]
[383636848,1757053843296,-480.0,0.00013894,2]
[383636849,1757053843305,-601.47,0.00013894,2]
[383636850,1757053843315,-480.54272328,0.00013894,2]
[383636851,1757053843324,-480.0,0.00013894,2]
[383636852,1757053843334,-480.0,0.00013894,2]
[383636853,1757053843344,-480.0,0.00013894,2]
[383636854,1757053843353,-263.05,0.00013894,2]
[383636855,1757053843363,-203.73,0.00013894,2]
[383636856,1757053843372,-175.28,0.00013894,2]
[383636857,1757053843381,-209.79,0.00013894,2]
[383636858,1757053843391,-480.0,0.00013894,2]
[383636859,1757053843400,-500.0,0.00013894,2]
[383636860,1757053843410,-480.0,0.00013894,2]
[383636861,1757053843420,-180.0,0.00013894,2]
[383636862,1757053843429,-416.41,0.00013894,2]
[383636863,1757053843439,-400.87,0.00013894,2]
[383636864,1757053843448,-422.83,0.00013894,2]
[383636865,1757053843457,-500.0,0.00013894,2]
[383636866,1757053843467,-181.68,0.00013894,2]
[383636867,1757053843477,-616.98,0.00013894,2]
[383636868,1757053843487,-480.0,0.00013894,2]
[383636869,1757053843496,-480.0,0.00013894,2]
[383636870,1757053843506,-480.0,0.00013894,2]
[383636871,1757053843515,-260.82,0.00013894,2]
[383636872,1757053843525,-480.0,0.00013894,2]
[383636873,1757053843534,-480.0,0.00013894,2]
[383636874,1757053843543,-480.0,0.00013894,2]
[383636875,1757053843552,-480.0,0.00013894,2]
[383636876,1757053843562,-480.0,0.00013894,2]
[383636877,1757053843571,-480.0,0.00013894,2]
[383636878,1757053843580,-480.0,0.00013894,2]
[383636879,1757053843590,-480.0,0.00013894,2]
[383636880,1757053843599,-480.0,0.00013894,2]
[383636881,1757053843610,-480.0,0.00013894,2]
[383636882,1757053843620,-480.0,0.00013894,2]
[383636883,1757053843629,-520.78,0.00013894,2]
[383636884,1757053843638,-480.0,0.00013894,2]
[383636885,1757053843648,-480.0,0.00013894,2]
[383636886,1757053843657,-480.0,0.00013894,2]
[383636887,1757053843667,-304.92800288,0.00013894,2]
[383636888,1757053843677,-480.0,0.00013894,2]
[383636889,1757053843686,-541.03,0.00013894,2]
[383636890,1757053843696,-480.0,0.00013894,2]
[383636891,1757053843706,-480.0,0.00013894,2]
[383636892,1757053843716,-544.63,0.00013894,2]
[383636893,1757053843726,-519.14,0.00013894,2]
[383636894,1757053843735,-480.0,0.00013894,2]
[383636895,1757053843745,-480.0,0.00013894,2]
[383636896,1757053843756,-480.0,0.00013894,2]
[383636897,1757053843772,-363.54,0.00013894,2]
[383636898,1757053843783,-480.0,0.00013894,2]
[383636899,1757053843793,-480.0,0.00013894,2]
[383636900,1757053843803,-480.0,0.00013894,2]
[383636901,1757053843815,-480.0,0.00013894,2]
[383636902,1757053843825,-480.0,0.00013894,2]
[383636903,1757053843836,-480.0,0.00013894,2]
[383636904,1757053843845,-484.1875951,0.00013894,2]
[383636905,1757053843855,-480.0,0.00013894,2]
[383636906,1757053843865,-480.0,0.00013894,2]
[383636907,1757053843874,-480.0,0.00013894,2]
[383636908,1757053843884,-183.8992078,0.00013894,2]
[383636909,1757053843894,-480.0,0.00013894,2]
[383636910,1757053843903,-535.19,0.00013894,2]
[383636911,1757053843912,-480.0,0.00013894,2]
[383636912,1757053843922,-480.0,0.00013894,2]
[383636913,1757053843933,-480.0,0.00013894,2]
[383636914,1757053843943,-480.0,0.00013894,2]
[383636915,1757053843953,-594.58323345,0.00013895,2]
[383636916,1757053843965,-480.0,0.00013895,2]
[383636917,1757053843975,-480.0,0.00013895,2]
[383636918,1757053843986,-480.0,0.00013895,2]
[383636919,1757053843996,-480.0,0.00013895,2]
[383636920,1757053844006,-480.0,0.00013895,2]
[383636921,1757053844016,-480.0,0.00013895,2]
[383636922,1757053844025,-43.19027538,0.00013895,2]
[383636923,1757053844038,-256.2,0.00013895,2]
[383636926,1757053846258,-542.82731066,0.00013871,2]
[383636927,1757053846268,-480.0,0.00013872,2]
[383636928,1757053846279,-180.60972462,0.00013895,2]
[383636929,1757053846288,-480.0,0.00013895,2]
[383636930,1757053846298,-480.0,0.00013895,2]
[383636931,1757053846308,-480.0,0.00013895,2]
[383636932,1757053846318,-480.0,0.00013895,2]
[383636933,1757053846327,-480.0,0.00013895,2]
[383636934,1757053846336,-480.0,0.00013895,2]
[383636935,1757053846346,-88.82235211,0.00013895,2]
[383636936,1757053846370,-391.17764789,0.00013895,2]
[383636937,1757053846379,-545.88843035,0.00013895,2]
[383636938,1757053846389,-480.0,0.00013895,2]
[383636939,1757053846399,-483.26306616,0.00013895,2]
[383636940,1757053846408,-480.0,0.00013895,2]
[383636941,1757053846418,-480.0,0.00013895,2]
[383636942,1757053846428,-480.0,0.00013895,2]
[383636943,1757053846438,-480.0,0.00013895,2]
[383636944,1757053846447,-480.0,0.00013895,2]
[383636945,1757053846457,-480.0,0.00013895,2]
[383636946,1757053846467,-480.0,0.00013895,2]
[383636947,1757053846476,-480.0,0.00013895,2]
[383636948,1757053846486,-490.59583654,0.00013895,2]
[383636949,1757053846496,-480.0,0.00013895,2]
[383636950,1757053846505,-423.83221573,0.00013895,2]
[383636951,1757053846515,-480.0,0.00013895,2]
[383636952,1757053846525,-500.0,0.00013896,2]
[383636953,1757053846535,-480.0,0.00013897,2]
[383636954,1757053846545,-550.62,0.00013897,2]
[383636955,1757053846555,-480.0,0.00013897,2]
[383636956,1757053846565,-187.78006525,0.00013972,2]
[383636957,1757053846575,-250.0,0.00013972,2]
[383636958,1757053846585,-250.0,0.00013972,2]
[383636959,1757053846595,-151.0,0.00013972,2]
[383636960,1757053846605,-151.0,0.00013972,2]
[383636961,1757053846615,-401.42475056,0.00014021,2]
[383636962,1757053846624,-1835.18779192,0.00014069,2]
[383636963,1757053846634,-480.0,0.00014145,2]
[383636964,1757053846643,-480.0,0.00014145,2]
[383636965,1757053846653,-905.73,0.00014145,2]
[383636966,1757053846663,-480.0,0.00014145,2]
[383636967,1757053846672,-1050.06,0.00014145,2]
[383636968,1757053846682,-1856.98,0.00014145,2]
[383636969,1757053846800,-480.0,0.00014145,2]
[383636970,1757053846810,-480.0,0.00014145,2]
[383636971,1757053846822,-507.13,0.00014145,2]
[383636972,1757053846831,-480.0,0.00014145,2]
[383636973,1757053846841,-562.35,0.00014145,2]
[383636974,1757053846851,-712.72,0.00014145,2]
[383636975,1757053846862,-480.0,0.00014145,2]
[383636976,1757053846872,-164.65504755,0.00014145,2]
[383636977,1757053846882,-480.0,0.00014145,2]
[383636978,1757053846892,-1069.1,0.00014146,2]
[383636979,1757053846902,-1506.79,0.00014146,2]
[383636980,1757053846912,-480.0,0.00014146,2]
[383636981,1757053846923,-824.45,0.00014146,2]
[383636982,1757053846932,-523.47,0.00014146,2]
[383636983,1757053846941,-480.0,0.00014146,2]
[383636984,1757053846950,-480.0,0.00014146,2]
[383636985,1757053846959,-499.44,0.00014146,2]
[383636986,1757053846969,-480.0,0.00014146,2]
[383636987,1757053846978,-480.0,0.00014146,2]
[383636988,1757053846987,-480.0,0.00014146,2]
[383636989,1757053847000,-491.56,0.00014146,2]
[383636990,1757053847012,-480.0,0.00014146,2]
[383636991,1757053847023,-229.8163848,0.00014146,2]
[383636992,1757053847034,-480.0,0.00014146,2]
[383636993,1757053847044,-649.43,0.00014146,2]
[383636994,1757053847054,-545.5,0.00014146,2]
[383636995,1757053847063,-699.8,0.00014146,2]
[383636996,1757053847073,-480.0,0.00014146,2]
[383636997,1757053847083,-480.0,0.00014146,2]
[383636998,1757053847093,-480.0,0.00014146,2]
[383636999,1757053847103,-480.0,0.00014146,2]
[383637000,1757053847112,-310.72377686,0.00014146,2]
[383637001,1757053847125,-226.93622314,0.00014146,2]
[383637002,1757053847134,-480.0,0.00014146,2]
[383637003,1757053847143,-320.38682749,0.00014166,2]
[383637004,1757053847153,-500.0,0.00014166,2]
[383637005,1757053847163,-500.0,0.00014166,2]
[383637006,1757053847172,-500.0,0.00014166,2]
[383637007,1757053847182,-500.0,0.00014166,2]
[383637008,1757053847191,-500.0,0.00014166,2]
[383637009,1757053847200,-500.0,0.00014166,2]
[383637010,1757053847210,-500.0,0.00014166,2]